bitfinex/quotes_SOLUSD_20251120
["timestamp","ask_amount","ask_price","bid_price","bid_amount"]
[1763611336419,2.34,143.24,143.21,2.62042327]
[1763611336619,2.34,143.24,143.2,12.40925096]
[1763611336825,2.34,143.24,143.2,13.09925096]
[1763611337021,1.66,143.24,143.21,10.29299732]
[1763611337423,1.66,143.24,143.21,9.60299732]
[1763611338733,0.68,143.23,143.19,6.98362092]
[1763611339050,0.68,143.23,143.19,9.60404419]
[1763611339420,0.68,143.23,143.19,10.29404419]
[1763611339740,0.68,143.23,143.2,2.62042327]
[1763611339927,0.68,143.26,143.21,2.62042327]
[1763611340144,1.66,143.25,143.21,9.60291592]
[1763611340738,3.31042327,143.24,143.18,12.40925096]
[1763611341132,0.69,143.23,143.18,13.11925096]
[1763611341542,0.69,143.23,143.19,2.62042327]
[1763611342044,7.67193948,143.23,143.19,9.60406761]
[1763611343323,0.69,143.23,143.19,9.60406761]
[1763611343926,0.69,143.23,143.2,2.62042327]
[1763611344227,0.69,143.23,143.19,9.60406761]
[1763611344642,0.69,143.23,143.19,6.98364434]
[1763611344844,0.69,143.23,143.19,9.60406761]
[1763611345439,0.69,143.23,143.19,10.31406761]
[1763611345639,0.69,143.23,143.2,2.62042327]
[1763611346123,18.12096,143.27,143.21,2.62042327]
[1763611346329,18.13798402,143.29,143.23,2.62042327]
[1763611346625,2.35,143.28,143.24,2.62042327]
[1763611347258,7.68793991,143.31,143.27,9.60025156]
[1763611347430,1.66,143.3,143.27,9.60025156]
[1763611347630,1.66,143.3,143.27,10.30025156]
[1763611347833,0.71,143.33,143.29,2.62042327]
[1763611348036,0.71,143.36,143.31,2.62042327]
[1763611348240,1.66,143.35,143.31,2.62042327]
[1763611348440,1.66,143.35,143.31,0.7]
[1763611348641,0.2,143.38,143.34,2.62042327]
[1763611348828,1.66,143.37,143.35,7.71559333]
[1763611349036,0.2,143.38,143.36,16.80442102]
[1763611349251,1.86,143.38,143.37,13.99055322]
[1763611349448,1.86,143.38,143.37,14.69055322]
[1763611350240,1.86,143.38,143.37,0.7]
[1763611350440,1.86,143.38,143.37,7.71559333]
[1763611351044,1.86,143.38,143.37,17.50442102]
[1763611351352,1.86,143.38,143.37,24.47938091]
[1763611352956,0.2,143.38,143.37,24.47938091]
[1763611353338,0.2,143.38,143.37,31.49497424]
[1763611357973,0.2,143.41,143.4,77.90978769]
[1763611358175,0.2,143.43,143.42,50.0]
[1763611358378,0.2,143.43,143.42,57.01559333]
[1763611358588,0.2,143.45,143.42,67.50442102]
[1763611358790,0.2,143.45,143.43,10.48882769]
[1763611359082,0.91,143.45,143.42,7.01559333]
[1763611359462,0.71,143.44,143.41,7.01559333]
[1763611359787,0.71,143.44,143.42,7.01559333]
[1763611359957,1.66,143.44,143.43,7.01559333]
[1763611361057,0.2,143.47,143.44,0.7]
[1763611361255,0.2,143.47,143.46,41.94097435]
[1763611361685,0.2,143.47,143.46,42.64097435]
[1763611361855,0.2,143.47,143.46,49.61155848]
[1763611362275,0.2,143.48,143.47,50.0]
[1763611362488,0.2,143.49,143.47,57.71559333]
[1763611362661,0.2,143.49,143.48,17.50442102]
[1763611363283,0.2,143.49,143.48,7.01559333]
[1763611364259,0.91,143.49,143.48,7.01559333]
[1763611366079,0.2,143.49,143.48,7.01559333]
[1763611366277,0.2,143.49,143.48,13.98520581]
[1763611369578,0.91,143.49,143.48,7.01559333]
[1763611369787,0.2,143.49,143.48,23.7740335]
[1763611370103,0.9,143.49,143.41,50.0]
[1763611370262,0.9,143.49,143.45,7.01559333]
[1763611370458,0.7,143.48,143.45,7.01559333]
[1763611370670,0.7,143.48,143.42,6.97252823]
[1763611370966,0.7,143.48,143.45,10.84538019]
[1763611371494,6.97009827,143.47,143.43,10.84538019]
[1763611371699,18.12096,143.46,143.41,10.84538019]
[1763611371871,2.36,143.45,143.42,10.84538019]
[1763611372066,6.96973897,143.48,143.44,10.84538019]
[1763611372270,2.36,143.47,143.4,24.40710133]
[1763611372492,2.36,143.47,143.43,10.84538019]
[1763611372701,0.7,143.46,143.43,10.84538019]
[1763611372861,0.2,143.49,143.45,10.84538019]
[1763611373183,0.2,143.49,143.47,10.84538019]
[1763611373184,2.36,143.48,143.47,10.84538019]
[1763611373871,9.32961248,143.48,143.47,10.84538019]
[1763611374076,9.32961248,143.48,143.45,10.84538019]
[1763611374276,0.7,143.47,143.45,10.84538019]
[1763611376067,7.67030061,143.47,143.45,10.84538019]
[1763611376266,0.7,143.46,143.45,10.84538019]
[1763611376792,0.7,143.46,143.43,10.84538019]
[1763611377597,0.7,143.46,143.42,10.84538019]
[1763611377891,7.67071126,143.46,143.44,10.84538019]
[1763611378278,0.7,143.45,143.44,10.84538019]
[1763611379184,7.67110557,143.45,143.43,10.84538019]
[1763611379383,1.66,143.44,143.43,10.84538019]
[1763611380692,7.67055811,143.47,143.43,10.84538019]
[1763611380999,2.36,143.46,143.45,10.84538019]
[1763611381397,9.33058413,143.46,143.43,10.84538019]
[1763611381582,0.7,143.45,143.43,10.84538019]
[1763611381900,0.7,143.45,143.41,10.84538019]
[1763611382196,11.54538019,143.45,143.38,9.78882769]
[1763611382417,11.54538019,143.45,143.36,46.01799811]
[1763611382418,0.7,143.45,143.39,10.84538019]
[1763611382585,0.7,143.44,143.39,10.84538019]
[1763611383090,1.66,143.43,143.39,10.84538019]
[1763611383497,7.67252823,143.42,143.39,10.84538019]
[1763611384106,11.54538019,143.41,143.36,10.84538019]
[1763611384272,1.66,143.4,143.36,10.84538019]
[1763611384595,1.66,143.4,143.34,10.84538019]
[1763611384596,10.84538019,143.39,143.34,10.84538019]
[1763611384810,11.54538019,143.39,143.34,10.84538019]
[1763611384977,0.7,143.38,143.33,10.84538019]
[1763611385179,1.66,143.37,143.33,10.84538019]
[1763611385395,0.7,143.36,143.33,10.84538019]
[1763611385587,6.97593303,143.35,143.32,10.84538019]
[1763611385794,1.66,143.34,143.32,10.84538019]
[1763611386099,2.36,143.34,143.32,10.84538019]
[1763611386811,0.7,143.39,143.33,11.51538019]
[1763611386990,18.12096,143.4,143.38,10.84538019]
[1763611387194,1.66,143.39,143.38,10.84538019]
[1763611389877,6.97398702,143.39,143.38,10.84538019]
[1763611390078,9.33398702,143.39,143.38,10.84538019]
[1763611390302,0.7,143.39,143.38,10.84538019]
[1763611390490,2.36,143.39,143.38,10.84538019]
[1763611390895,1.66,143.39,143.38,10.84538019]
[1763611394709,0.7,143.44,143.38,18.48976478]
[1763611394913,1.66,143.43,143.41,10.84538019]
[1763611395121,0.7,143.42,143.41,10.84538019]
[1763611395892,1.66,143.43,143.41,10.84538019]
[1763611396093,9.332296,143.43,143.41,10.84538019]
[1763611396510,0.7,143.42,143.4,10.84538019]
[1763611396701,10.84538019,143.41,143.34,0.67]
[1763611397017,2.36,143.4,143.37,10.84538019]
[1763611397218,0.7,143.39,143.35,10.84538019]
[1763611397514,18.12096,143.37,143.32,10.84538019]
[1763611397699,12.50538019,143.36,143.31,10.84538019]
[1763611397901,13.20538019,143.36,143.31,10.84538019]
[1763611398098,7.67593303,143.35,143.31,10.84538019]
[1763611398521,0.7,143.34,143.3,10.84538019]
[1763611398717,1.66,143.33,143.3,10.84538019]
[1763611399215,2.36,143.33,143.3,10.84538019]
[1763611399399,0.7,143.32,143.3,10.84538019]
[1763611399598,7.67773928,143.32,143.3,10.84538019]
[1763611400220,7.68609974,143.35,143.31,10.84538019]
[1763611400518,1.66,143.34,143.31,10.84538019]
[1763611400719,2.37,143.34,143.31,10.84538019]
[1763611400902,2.37,143.34,143.29,6.97880092]
[1763611401102,1.66,143.33,143.31,10.84538019]
[1763611401302,1.66,143.32,143.29,7.65880092]
[1763611401620,1.66,143.32,143.31,10.84538019]
[1763611402618,0.71,143.37,143.31,11.52538019]
[1763611402818,6.97464624,143.38,143.36,10.84538019]
[1763611403320,1.66,143.37,143.35,10.84538019]
[1763611403711,8.63501593,143.37,143.35,10.84538019]
[1763611405708,9.34501593,143.37,143.34,10.84538019]
[1763611406030,0.71,143.36,143.33,10.84538019]
[1763611407128,0.71,143.36,143.32,10.84538019]
[1763611407730,6.97593303,143.35,143.32,10.84538019]
[1763611407929,1.66,143.34,143.32,10.84538019]
[1763611408124,1.66,143.34,143.33,11.55538019]
[1763611408626,1.66,143.34,143.33,10.84538019]
[1763611410920,8.6364197,143.34,143.33,10.84538019]
[1763611411121,1.66,143.34,143.33,10.84538019]
[1763611411317,8.63653782,143.34,143.32,10.84538019]
[1763611411516,0.69,143.33,143.29,10.84538019]
[1763611412632,6.97739324,143.32,143.3,10.84538019]
[1763611412830,1.66,143.31,143.3,10.84538019]
[1763611414228,8.63788012,143.31,143.3,10.84538019]
[1763611414430,9.32788012,143.31,143.25,0.71]
[1763611414635,0.69,143.3,143.26,10.84538019]
[1763611414934,0.69,143.3,143.27,10.84538019]
[1763611415721,18.12096,143.28,143.25,10.84538019]
[1763611416028,1.66,143.27,143.26,10.84538019]
[1763611416231,8.63982829,143.27,143.26,10.84538019]
[1763611416924,8.63982829,143.27,143.25,10.84538019]
[1763611416925,9.32982829,143.27,143.25,10.84538019]
[1763611417835,18.12096,143.28,143.26,10.84538019]
[1763611417836,6.9794916,143.28,143.26,10.84538019]
[1763611418034,0.69,143.28,143.23,0.81]
[1763611418246,1.66,143.27,143.23,0.81]
[1763611418423,1.66,143.27,143.26,10.84538019]
[1763611421447,8.63982829,143.27,143.26,10.84538019]
[1763611422145,8.63982829,143.27,143.25,10.84538019]
[1763611424644,1.66,143.27,143.26,10.84538019]
[1763611425761,1.66,143.27,143.26,11.55538019]
[1763611426969,1.66,143.27,143.26,18.5356957]
[1763611429350,6.97756902,143.32,143.26,35.98648447]
[1763611429548,1.66,143.31,143.3,10.84538019]
[1763611430587,1.66,143.31,143.24,59.78882769]
[1763611430588,8.6382327,143.31,143.24,59.78882769]
[1763611430794,8.6382327,143.31,143.23,0.76]
[1763611430957,26.082933,143.31,143.25,10.84538019]
[1763611431157,0.67,143.3,143.25,10.84538019]
[1763611431552,18.12096,143.28,143.25,10.84538019]
[1763611431782,1.66,143.27,143.25,0.66]
[1763611431949,1.66,143.27,143.23,0.1]
[1763611432150,1.66,143.27,143.23,0.76]
[1763611432354,1.66,143.27,143.23,7.74173092]
[1763611432563,8.6400607,143.27,143.23,0.76]
[1763611432852,8.6400607,143.27,143.25,7.02715945]
[1763611433281,0.67,143.26,143.23,0.1]
[1763611433592,0.67,143.26,143.23,7.12715945]
[1763611434471,6.98080279,143.25,143.23,7.12715945]
[1763611434658,1.66,143.24,143.23,0.1]
[1763611434859,1.66,143.24,143.23,7.12715945]
[1763611436794,1.66,143.24,143.23,0.1]
[1763611436956,1.66,143.24,143.23,7.12715945]
[1763611437158,8.64129014,143.24,143.23,7.12715945]
[1763611437887,8.64129014,143.24,143.23,0.1]
[1763611438072,8.64129014,143.24,143.23,7.12715945]
[1763611438275,9.31129014,143.24,143.23,0.1]
[1763611439798,1.66,143.24,143.23,7.12715945]
[1763611440307,1.66,143.24,143.23,7.78715945]
[1763611440465,1.66,143.24,143.23,7.12715945]
[1763611440661,6.98080279,143.32,143.23,7.12715945]
[1763611440868,27.43025128,143.29,143.26,7.02715945]
[1763611441287,27.43025128,143.29,143.25,7.02715945]
[1763611441288,0.67,143.28,143.25,7.02715945]
[1763611441882,9.78882769,143.3,143.27,7.02715945]
[1763611441883,6.97851726,143.3,143.27,7.02715945]
[1763611442096,1.66,143.29,143.28,7.02715945]
[1763611442576,25.10030115,143.28,143.23,0.1]
[1763611442894,18.12096,143.25,143.23,0.1]
[1763611443094,1.66,143.24,143.23,0.1]
[1763611443889,8.64129014,143.24,143.23,0.1]
[1763611444197,9.31129014,143.24,143.23,0.1]
[1763611444591,9.31129014,143.24,143.23,1e-08]
[1763611444592,19.10011783,143.24,143.23,1e-08]
[1763611444897,19.10011783,143.24,143.22,0.1]
[1763611444898,27.90978769,143.23,143.22,0.1]
[1763611445095,28.57978769,143.23,143.22,0.1]
[1763611445301,35.60694714,143.23,143.22,0.1]
[1763611445873,42.5887247,143.23,143.22,0.1]
[1763611446496,41.9238652,143.28,143.22,0.1]
[1763611446497,17.44964604,143.27,143.22,7.78715945]
[1763611446795,1.66,143.26,143.23,7.02715945]
[1763611446996,1.66,143.26,143.23,7.68715945]
[1763611447389,1.66,143.26,143.23,0.66]
[1763611447594,1.66,143.26,143.23,7.68715945]
[1763611448120,6.98080279,143.25,143.23,7.02715945]
[1763611448986,6.98014636,143.27,143.24,7.68715945]
[1763611449204,1.66,143.26,143.24,0.66]
[1763611449391,1.66,143.26,143.25,7.02715945]
[1763611450089,8.64031551,143.26,143.25,7.02715945]
[1763611452609,8.64031551,143.26,143.24,7.02715945]
[1763611452811,8.64031551,143.26,143.24,3.28382529]
[1763611453797,8.64031551,143.26,143.24,0.66]
[1763611454112,8.64031551,143.26,143.24,3.28382529]
[1763611454605,0.67,143.25,143.22,0.1]
[1763611454778,1.66,143.24,143.22,0.1]
[1763611454988,18.12096,143.23,143.22,0.1]
[1763611455190,18.79096,143.23,143.22,0.1]
[1763611455988,18.79096,143.23,143.16,0.1]
[1763611455989,18.12096,143.19,143.16,0.1]
[1763611456192,8.64422006,143.18,143.16,0.1]
[1763611457314,17.45737246,143.21,143.17,2.62382529]
[1763611457514,18.79096,143.24,143.2,2.62382529]
[1763611457721,1.66,143.23,143.19,2.62382529]
[1763611457890,1.66,143.22,143.2,2.62382529]
[1763611458090,8.64246681,143.22,143.2,2.62382529]
[1763611458919,8.64246681,143.22,143.2,7.0319632]
[1763611459114,6.9819634,143.23,143.21,7.0319632]
[1763611459415,1.66,143.22,143.21,0.66]
[1763611459619,1.66,143.22,143.19,0.66]
[1763611459793,1.66,143.22,143.18,0.66]
[1763611460217,1.66,143.22,143.19,6.98372791]
[1763611460397,1.66,143.22,143.2,0.67]
[1763611460597,18.12130547,143.26,143.21,7.0319632]
[1763611460805,8.64080279,143.25,143.23,7.0319632]
[1763611461124,8.64080279,143.25,143.21,7.0319632]
[1763611461301,26.75280977,143.25,143.2,0.67]
[1763611461621,26.75280977,143.25,143.2,7.7019632]
[1763611462017,26.09280977,143.25,143.2,7.7019632]
[1763611462203,0.66,143.24,143.2,7.7019632]
[1763611462407,6.98177756,143.23,143.2,7.0319632]
[1763611462607,1.66,143.22,143.2,7.0319632]
[1763611462825,1.66,143.22,143.19,0.67]
[1763611463122,1.66,143.22,143.2,7.0319632]
[1763611464028,1.66,143.22,143.21,7.0319632]
[1763611465027,8.64226504,143.22,143.21,7.0319632]
[1763611465219,1.66,143.22,143.21,7.0319632]
[1763611465432,17.45263682,143.25,143.21,7.7019632]
[1763611465728,8.64137827,143.24,143.23,7.0319632]
[1763611467314,8.64137827,143.24,143.22,7.0319632]
[1763611467899,8.64137827,143.24,143.21,0.72]
[1763611468413,9.36137827,143.24,143.22,7.0319632]
[1763611468615,9.36137827,143.24,143.21,7.0319632]
[1763611469806,8.64137827,143.24,143.21,7.7519632]
[1763611471623,9.36137827,143.24,143.21,7.7519632]
[1763611471808,9.36137827,143.24,143.21,0.72]
[1763611472007,9.36137827,143.24,143.21,7.7519632]
[1763611472412,8.64137827,143.24,143.21,7.7519632]
[1763611472729,9.36137827,143.24,143.21,7.0319632]
[1763611472924,8.64137827,143.24,143.22,0.72]
[1763611473125,1.66,143.23,143.22,7.7519632]
[1763611474203,1.66,143.23,143.22,0.72]
[1763611474805,7.0319632,143.29,143.22,7.7519632]
[1763611475012,1.66,143.28,143.23,7.0319632]
[1763611475206,1.66,143.28,143.23,7.7519632]
[1763611475511,1.66,143.28,143.24,7.7519632]
[1763611475717,6.97982829,143.27,143.24,0.72]
[1763611475925,6.97982829,143.27,143.25,0.72]
[1763611476317,1.66,143.26,143.25,0.72]
[1763611477413,9.36050449,143.26,143.22,0.72]
[1763611477906,1.66,143.26,143.22,0.72]
[1763611478330,8.64037356,143.26,143.22,0.72]
[1763611478709,8.64037356,143.26,143.23,7.0319632]
[1763611479127,8.64037356,143.26,143.23,7.7519632]
[1763611479316,18.12096,143.29,143.25,7.0319632]
[1763611479519,1.66,143.28,143.26,7.7519632]
[1763611479932,1.66,143.28,143.27,0.72]
[1763611480318,1.66,143.28,143.27,7.7519632]
[1763611480527,1.66,143.28,143.27,0.72]
[1763611482831,18.16134037,143.34,143.27,3.3426367]
[1763611483008,1.66,143.33,143.3,2.6226367]
[1763611483334,8.63690643,143.33,143.29,2.6226367]
[1763611483723,8.63690643,143.33,143.3,0.72]
[1763611484526,6.97690643,143.33,143.3,0.72]
[1763611484840,1.66,143.32,143.3,0.72]
[1763611485047,0.72,143.31,143.27,0.72]
[1763611485529,4.2826367,143.32,143.27,0.72]
[1763611485848,5.0026367,143.32,143.27,0.72]
[1763611486420,6.97788012,143.31,143.27,3.3426367]
[1763611486840,6.97788012,143.31,143.28,0.72]
[1763611487450,6.97788012,143.31,143.28,3.3426367]
[1763611487744,6.97788012,143.31,143.29,0.72]
[1763611488248,8.63747231,143.32,143.29,3.3426367]
[1763611488453,1.66,143.31,143.3,3.3426367]
[1763611489755,1.66,143.31,143.3,10.32100376]
[1763611490131,1.66,143.31,143.29,2.6226367]
[1763611490337,1.66,143.31,143.3,0.66]
[1763611491636,1.66,143.31,143.3,3.2826367]
[1763611492032,1.66,143.31,143.3,10.26100376]
[1763611492561,6.97657106,143.34,143.3,10.26100376]
[1763611492728,1.66,143.33,143.31,3.2826367]
[1763611492932,1.66,143.33,143.32,4.09510504]
[1763611493148,1.66,143.33,143.32,4.75510504]
[1763611494443,1.66,143.33,143.32,0.66]
[1763611498457,8.63690643,143.33,143.29,7.63869249]
[1763611498669,9.29690643,143.33,143.29,11.52471456]
[1763611498959,9.29690643,143.33,143.3,0.66]
[1763611499342,9.29690643,143.33,143.27,9.78882769]
[1763611499343,0.66,143.32,143.27,11.52471456]
[1763611499528,0.66,143.32,143.28,10.86471456]
[1763611499733,0.66,143.32,143.28,11.52471456]
[1763611500337,6.97788012,143.31,143.28,0.66]
[1763611500632,1.66,143.3,143.28,0.66]
[1763611500944,18.78096,143.36,143.29,10.86471456]
[1763611501141,8.63593303,143.35,143.32,10.86471456]
[1763611501557,9.29593303,143.35,143.32,10.86471456]
[1763611501764,9.29593303,143.35,143.32,11.52471456]
[1763611502263,26.7357656,143.35,143.31,11.52471456]
[1763611502562,25.0757656,143.35,143.31,11.52471456]
[1763611502863,1.66,143.34,143.31,11.52471456]
[1763611503763,8.63688619,143.34,143.31,11.52471456]
[1763611504073,8.63688619,143.34,143.31,0.66]
[1763611504238,8.63688619,143.34,143.31,11.52471456]
[1763611504439,8.63688619,143.34,143.31,0.66]
[1763611504957,8.63688619,143.34,143.31,11.52471456]
[1763611505136,8.63688619,143.34,143.31,0.66]
[1763611505338,8.63688619,143.34,143.31,11.52471456]
[1763611505537,8.63688619,143.34,143.32,0.66]
[1763611505758,1.66,143.34,143.33,10.86471456]
[1763611506065,1.66,143.34,143.32,11.52471456]
[1763611506232,1.66,143.34,143.32,0.66]
[1763611506433,9.2964197,143.34,143.32,10.86471456]
[1763611506632,9.2964197,143.34,143.3,0.66]
[1763611506856,9.2964197,143.34,143.31,10.86471456]
[1763611507256,8.6364197,143.34,143.31,11.52471456]
[1763611508049,8.6364197,143.34,143.32,0.66]
[1763611508377,8.6364197,143.34,143.31,11.52471456]
[1763611508877,8.6364197,143.34,143.31,0.66]
[1763611509068,8.6364197,143.34,143.31,11.52471456]
[1763611509977,8.6364197,143.34,143.31,10.86471456]
[1763611510275,8.6364197,143.34,143.31,11.52471456]
[1763611512165,0.66,143.33,143.3,10.86471456]
[1763611512458,0.66,143.33,143.29,11.52471456]
[1763611512659,0.66,143.33,143.29,0.66]
[1763611512845,0.66,143.33,143.29,10.86471456]
[1763611513050,11.52471456,143.33,143.28,11.52471456]
[1763611513552,0.66,143.32,143.28,11.52471456]
[1763611513757,1.66,143.31,143.28,11.52471456]
[1763611514175,8.63804756,143.31,143.28,10.86471456]
[1763611514356,8.63804756,143.31,143.29,0.66]
[1763611515078,8.63804756,143.31,143.29,11.52471456]
[1763611516172,8.63804756,143.31,143.3,11.52471456]
[1763611516581,8.63804756,143.31,143.3,10.86471456]
[1763611516783,1.66,143.31,143.3,10.86471456]
[1763611516977,8.63788012,143.31,143.3,10.86471456]
[1763611517282,6.97756646,143.32,143.3,11.52471456]
[1763611517454,1.66,143.31,143.3,11.52471456]
[1763611517653,18.12096,143.34,143.31,0.66]
[1763611517858,1.66,143.33,143.31,10.86471456]
[1763611518157,1.66,143.33,143.31,11.52471456]
[1763611518782,1.66,143.33,143.31,4.75532264]
[1763611519168,8.63694541,143.33,143.31,4.75532264]
[1763611520266,1.66,143.33,143.31,4.75532264]
[1763611520464,1.66,143.33,143.32,4.79532264]
[1763611523390,1.66,143.33,143.32,4.09532264]
[1763611523687,1.66,143.33,143.31,4.79532264]
[1763611523885,8.63699723,143.33,143.3,4.09532264]
[1763611524086,8.63699723,143.33,143.3,4.79532264]
[1763611525862,0.68,143.32,143.27,6.97970603]
[1763611526199,0.68,143.32,143.28,4.09532264]
[1763611526389,0.68,143.32,143.28,4.79532264]
[1763611526575,0.68,143.32,143.29,4.09532264]
[1763611526768,0.68,143.32,143.29,4.79532264]
[1763611527080,8.63699723,143.33,143.3,4.78532264]
[1763611528377,6.97699723,143.33,143.31,4.09532264]
[1763611528708,1.66,143.32,143.31,4.78532264]
[1763611531693,1.66,143.32,143.31,0.69]
[1763611531890,8.63739324,143.32,143.29,0.69]
[1763611532095,8.63739324,143.32,143.29,4.09532264]
[1763611532300,6.97739324,143.32,143.29,4.78532264]
[1763611532797,1.66,143.31,143.29,0.69]
[1763611533200,2.33,143.3,143.25,0.69]
[1763611533499,6.97885407,143.29,143.25,4.78532264]
[1763611533719,7.64885407,143.29,143.25,4.78532264]
[1763611534002,7.64885407,143.29,143.26,4.09532264]
[1763611535084,7.64885407,143.29,143.25,0.69]
[1763611535394,6.97885407,143.29,143.25,4.78532264]
[1763611535592,25.09867049,143.32,143.28,4.09532264]
[1763611535791,1.66,143.31,143.29,4.09532264]
[1763611536186,1.66,143.31,143.29,4.78532264]
[1763611536580,0.67,143.3,143.23,9.78882769]
[1763611536780,32.00511033,143.29,143.2,0.69]
[1763611537000,18.12096,143.25,143.2,0.69]
[1763611537283,1.66,143.24,143.2,4.78532264]
[1763611537694,6.98177756,143.23,143.21,0.69]
[1763611537900,1.66,143.22,143.21,0.69]
[1763611538494,6.98141462,143.24,143.21,0.69]
[1763611538719,1.66,143.23,143.21,0.69]
[1763611539093,1.66,143.23,143.19,4.78532264]
[1763611539296,1.66,143.23,143.2,0.69]
[1763611539714,6.98226504,143.22,143.2,0.69]
[1763611540787,1.66,143.21,143.2,0.69]
[1763611544419,8.6427526,143.21,143.2,0.69]
[1763611544589,1.66,143.21,143.2,0.69]
[1763611549408,6.98469866,143.26,143.2,11.76820635]
[1763611549618,1.66,143.25,143.21,0.69]
[1763611549822,18.11586708,143.31,143.22,4.09532264]
[1763611550023,9.78882769,143.28,143.25,4.09532264]
[1763611550331,1.66,143.27,143.24,4.09532264]
[1763611550930,1.66,143.27,143.25,0.7]
[1763611551107,1.66,143.27,143.25,4.79532264]
[1763611551610,1.66,143.27,143.26,0.7]
[1763611555314,1.66,143.27,143.25,2.62308735]
[1763611555520,1.66,143.27,143.25,3.32308735]
[1763611558630,1.66,143.27,143.25,2.62308735]
[1763611558809,2.34,143.27,143.25,2.62308735]
[1763611559010,1.66,143.27,143.25,3.32308735]
[1763611559827,1.66,143.27,143.25,2.62308735]
[1763611560222,1.66,143.27,143.26,3.32308735]
[1763611560403,1.66,143.27,143.23,9.78882769]
[1763611560835,8.63989912,143.27,143.25,2.62308735]
[1763611561316,8.63989912,143.27,143.25,3.32308735]
[1763611561521,1.66,143.27,143.25,3.32308735]
[1763611564234,1.66,143.27,143.26,2.62308735]
[1763611565931,1.66,143.27,143.26,3.32308735]
[1763611566113,1.66,143.27,143.26,2.62308735]
[1763611568243,1.66,143.27,143.25,3.32308735]
[1763611570234,1.66,143.27,143.25,10.30386162]
[1763611570445,1.66,143.27,143.26,2.62308735]
[1763611571740,1.66,143.27,143.25,7.68077427]
[1763611571940,1.66,143.27,143.26,2.62308735]
[1763611572755,1.66,143.27,143.25,0.7]
[1763611572915,1.66,143.27,143.26,2.62308735]
[1763611573115,1.66,143.27,143.25,3.32308735]
[1763611573418,1.66,143.27,143.26,2.62308735]
[1763611573639,1.66,143.27,143.26,3.32308735]
[1763611574409,1.66,143.27,143.26,2.62308735]
[1763611577032,1.66,143.27,143.25,3.32308735]
[1763611579238,1.66,143.27,143.25,10.30382912]
[1763611581040,8.63984377,143.27,143.25,0.7]
[1763611581335,8.63984377,143.27,143.25,3.32308735]
[1763611582345,1.66,143.27,143.25,2.62308735]
[1763611582517,1.66,143.27,143.26,3.33308735]
[1763611586349,17.44181904,143.34,143.26,10.31322695]
[1763611586648,7.64495989,143.37,143.33,2.62308735]
[1763611586823,25.96504108,143.39,143.35,2.62308735]
[1763611587026,0.2,143.39,143.37,2.62308735]
[1763611587244,0.2,143.39,143.38,2.62308735]
[1763611587452,1.86,143.39,143.38,2.62308735]
[1763611588351,1.86,143.39,143.37,0.67]
[1763611588538,9.50417497,143.39,143.35,3.29308735]
[1763611588945,8.83417497,143.39,143.35,3.29308735]
[1763611589146,8.83417497,143.39,143.33,10.45882769]
[1763611589147,6.97495989,143.37,143.33,10.45882769]
[1763611589347,1.66,143.36,143.34,3.29308735]
[1763611589547,1.66,143.36,143.35,2.62308735]
[1763611589942,1.66,143.36,143.35,3.29308735]
[1763611590344,1.66,143.36,143.35,2.62308735]
[1763611590546,1.66,143.36,143.33,0.67]
[1763611590745,1.66,143.36,143.34,2.62308735]
[1763611591075,21.41404735,143.35,143.32,9.78882769]
[1763611591269,2.62308735,143.33,143.28,2.62308735]
[1763611591434,1.66,143.32,143.28,2.62308735]
[1763611591765,2.33,143.32,143.28,3.29308735]
[1763611592463,1.66,143.32,143.29,3.29308735]
[1763611592826,8.63784716,143.32,143.29,3.29308735]
[1763611593800,1.66,143.32,143.29,3.29308735]
[1763611594251,8.63752389,143.32,143.29,3.29308735]
[1763611595157,0.67,143.31,143.25,9.78882769]
[1763611595338,0.67,143.31,143.27,3.29308735]